Cogmind - Beta 13 @@@ ROGUE MODE // 2024.03.31 @ 21:08:52 Player: Derauth Result: Destroyed by G-47 Trooper with Particle Gun Performance ------------- Evolutions (0) 0 Regions Visited (1) 200 Robots Destroyed (7) 35 Value Destroyed (216) 216 Prototype IDs (2) 40 Alien Tech Used (0) 0 Bonus (0) 0 TOTAL SCORE: 491 Bonus ------- None Cogmind --------- Core Integrity 0/250 Matter 103/300 Energy 100/100 System Corruption 0% Temperature Cool (9) Movement Core (200) Ox3 Location -10/Materials Parts ------- > --- POWER (1) -------- (None) > --- PROPULSION (2) --- (None) > --- UTILITY (2) ------ Medium Storage Unit Backup Plating I > --- WEAPON (2) ------- (None) > --- INVENTORY (10) --- Medium Battery (43) Small Matter Pod (0) Seismic Detector Seismic Detector Backup Plating I Peak State ------------ > --- POWER ------------ Backup Power I > --- PROPULSION ------- Aluminum Leg Aluminum Leg > --- UTILITY ---------- Backup Plating I Backup Plating I > --- WEAPON ----------- Assault Rifle Assault Rifle > --- INVENTORY -------- Aluminum Leg Wheel Wheel Light Assault Rifle [Rating: 7] Favorites ----------- Power Light Ion Engine Engine Light Ion Engine Propulsion Aluminum Leg Leg Aluminum Leg Utility Backup Plating I Storage Medium Storage Unit Protection Backup Plating I Weapon Assault Rifle Energy Gun EM Pulse Gun Ballistic Gun Assault Rifle Launcher Grenade Launcher Special Weapon Mining Laser Build | -11 -10 ------- Run | Yrd Mat Slots Evolved . | . . Power . | . . Propulsion . | . . Utility . | . . Weapon . | . . Parts Attached 17 | 5 12 Power 2 | 1 1 Engine 2 | 1 1 Core . | . . Reactor . | . . Propulsion 2 | 2 . Treads . | . . Leg 2 | 2 . Wheel . | . . Hover . | . . Flight . | . . Utility 3 | . 3 Device . | . . Storage 2 | . 2 Processor . | . . Hackware . | . . Protection 1 | . 1 Artifact . | . . Weapon 10 | 2 8 Energy Gun 1 | . 1 Energy Cannon . | . . Ballistic Gun 2 | 2 . Ballistic Cannon . | . . Launcher 2 | . 2 Special Weapon 5 | . 5 Impact Weapon . | . . Slashing Weapon . | . . Piercing Weapon . | . . Special Melee Weapon . | . . Unidentified Prototypes . | . . Parts Lost 8 | . 8 Power 1 | . 1 Propulsion 2 | . 2 Utility . | . . Weapon 5 | . 5 Highest Loss Streak 8 | . 8 To Critical Strikes . | . . Average Slot Usage (%) 94 | . 94 Engine 12 | . 12 Leg 26 | . 26 Storage 12 | . 12 Protection 14 | . 14 Energy Gun 1 | . 1 Ballistic Gun 7 | . 7 Launcher 7 | . 7 Special Weapon 10 | . 10 Naked Turns . | . . Heaviest Build 19 | 7 19 Greatest Support 20 | 20 20 Greatest Overweight (x) 3 | . 3 Average Overweight (x) . | . . Largest Inventory Capacity 10 | 5 10 Average Capacity 6 | 5 7 Most Carried 8 | 5 8 Average Carried 4 | 2 5 Final Capacity 10 | 5 10 Final Carried 5 | 4 5 Class Distribution -------------------- 100% | Mutant Dominant Class ---------------- Mutant | -10/Materials Resources | -11 -10 ----------- Run | Yrd Mat Matter Collected 320 | 286 34 Remotely . | . . Salvage Created 124 | 42 82 Parts 8 | 1 7 Haulers Intercepted . | . . Recyclers Shooed 2 | . 2 Parts Field Recycled . | . . Retrieved Matter . | . . Parts Self-Destructed . | . . Prevented . | . . Kills | -11 -10 ------- Run | Yrd Mat Combat Hostiles Destroyed 7 | 1 6 Guns 2 | 1 1 AOE 5 | . 5 Classes Destroyed 2 | 1 1 Swarmer 3 | . 3 Grunt 4 | 1 3 Best Kill Streak 2 | 1 2 Combat Bots Only 2 | 1 2 Max Kills in Single Turn 2 | 1 2 Gunslinging . | . . Exploded 2 | . 2 Melee . | . . Uniques/NPCs Destroyed . | . . Combat | -11 -10 -------- Run | Yrd Mat Hostile Shots Fired 102 | 9 93 Missed 25 | 2 23 Damage Taken 943 | 78 865 Core 258 | 10 248 Absorbed by Shields . | . . Regen/Repaired (Parts) 12 | . 12 Core Remaining (%) 96 | 96 . Volleys Fired 48 | 6 42 Largest 2 | 2 2 Hottest 100 | 40 100 Shots Fired 60 | 12 48 Gun 44 | 12 32 Cannon . | . . Launcher 10 | . 10 Special 6 | . 6 Kinetic 32 | 12 20 Thermal 6 | . 6 Explosive 10 | . 10 Electromagnetic 12 | . 12 Robot Hit Streak 5 | 2 5 Robot Miss Streak 3 | 2 3 Penetration Max . | . . Secondary Targets . | . . Shots Hit Robots 28 | 6 22 Core Hits 17 | 2 15 Critical Kills . | . . Critical Parts Destroyed . | . . Critical Strikes . | . . Melee Attacks . | . . Impact . | . . Slashing . | . . Piercing . | . . Sneak Attacks . | . . Combat Hostiles . | . . Follow-up Attacks . | . . Damage Inflicted 1004 | 78 926 Guns 257 | 77 180 Cannons . | . . Explosions 644 | . 644 Melee . | . . Ramming 7 | 1 6 Kinetic 180 | 77 103 Thermal 96 | . 96 Explosive 644 | . 644 Electromagnetic 77 | . 77 Impact . | . . Slashing . | . . Piercing . | . . Highest Corruption . | . . Average Corruption . | . . Corruption Purged . | . . Corruption Blocked . | . . Overload Shots . | . . Overflow Damage 22 | . 22 Projectiles . | . . Explosions 22 | . 22 Melee . | . . Knockbacks . | . . Impact . | . . Kinetic . | . . Secondary . | . . Self-Inflicted Damage 37 | . 37 Shots 1 | . 1 Rammed 1 | . 1 Targets Rammed 4 | 1 3 Kicked 3 | 1 2 Crushed . | . . Highest Temperature 179 | . 179 Average Temperature 58 | . 58 Received Heat Transfer 474 | 42 432 Siege Activations . | . . Robots Corrupted . | . . Combat Hostiles . | . . Parts Fried . | . . Impact Corruptions . | . . Robots Melted . | . . Combat Hostiles . | . . Parts Melted . | . . Heat Transferred 200 | . 200 Parts Sabotaged . | . . Parts Stolen . | . . Parts Stripped . | . . Power Chain Reactions . | . . Alert | -11 -10 ------- Run | Yrd Mat Peak Influence 245 | 20 245 Initial 13 | . 13 Average 124 | 5 159 Maximum Alert Level 1 | . 1 Low Security (%) 61 | 100 50 Level 1 38 | . 49 Level 2 . | . . Level 3 . | . . Level 4 . | . . Level 5 . | . . High Security . | . . Max Security . | . . Squads Dispatched 3 | . 3 Investigation 2 | . 2 Extermination . | . . Reinforcement 1 | . 1 Assault . | . . Garrison . | . . Intercept . | . . Searches Triggered . | . . Construction Impeded . | . . Haulers Reinforced . | . . Active Scanning Responses . | . . Cargo Convoy Interrupts . | . . Stealth | -11 -10 --------- Run | Yrd Mat Distress Signals . | . . Communications Jammed . | . . Distress Signals . | . . Times Spotted 17 | 1 16 Peak Tracking Total 5 | 1 5 Tactical Retreats 1 | . 1 Traps | -11 -10 ------- Run | Yrd Mat Traps Triggered . | . . Indirectly . | . . Trap Hack Attempts . | . . Triggered . | . . Disarmed 1 | . 1 Reprogrammed . | . . Reused . | . . Traps Extracted . | . . Installed . | . . Triggered . | . . Machines | -11 -10 ---------- Run | Yrd Mat Machines Disabled 5 | . 5 Max in Single Turn 2 | . 2 Machines Repaired . | . . Machines Dismantled . | . . Machines Sabotaged . | . . Overloaded Fab Kills . | . . Hacking | -11 -10 --------- Run | Yrd Mat Machines Accessed 5 | . 5 Terminals 4 | . 4 Fabricators . | . . Repair Stations 1 | . 1 Recycling Units . | . . Scanalyzers . | . . Garrison Access . | . . Total Hacks 21 | . 21 Successful 9 | . 9 Failed 12 | . 12 Catastrophic 1 | . 1 Database Lockouts . | . . Manual 1 | . 1 Terminals 16 | . 16 Fabricators . | . . Repair Stations 5 | . 5 Recycling Units . | . . Scanalyzers . | . . Garrison Access . | . . Terminal Hacks 6 | . 6 Prototype ID Bank 1 | . 1 Alert Level 1 | . 1 Locate Traps 2 | . 2 Disarm Traps 1 | . 1 Security Status 1 | . 1 Fabricator Hacks . | . . Repair Station Hacks 3 | . 3 Scan Component 1 | . 1 Repair 1 | . 1 Refit 1 | . 1 Recycling Unit Hacks . | . . Scanalyzer . | . . Garrison Access Hacks . | . . Unauthorized Hacks . | . . Terminals . | . . Fabricators . | . . Repair Stations . | . . Recycling Units . | . . Scanalyzers . | . . Garrison Access . | . . Data Cores Recovered . | . . Used . | . . Hacking Detections 5 | . 5 Full Trace Events 5 | . 5 Feedback Events . | . . Feedback Blocked . | . . Robot Schematics Acquired . | . . Robots Built . | . . Authchips . | . . Time . | . . Total Robot Build Rating . | . . Part Schematics Acquired . | . . Parts Built . | . . Authchips . | . . Time . | . . Total Part Build Rating . | . . Parts Repaired 1 | . 1 Time 26 | . 26 Parts Recycled . | . . Recycled Matter . | . . Retrieved Matter . | . . Retrieved Components . | . . Parts Scanalyzed . | . . Part Schematics Acquired . | . . Parts Damaged . | . . Bothacking | -11 -10 ------------ Run | Yrd Mat Used RIF Installer . | . . Robots Hacked . | . . Non-combat . | . . Combat . | . . Robot Hacks Applied . | . . Relay Couplers Released . | . . Fabnet Peak Effective % . | . . Robots Rewired . | . . Allies Hacked . | . . Hacks Repelled . | . . Allies | -11 -10 -------- Run | Yrd Mat Total Allies . | . . Largest Group . | . . Highest-Rated Group . | . . Highest-Rated Ally . | . . Total Orders . | . . Ally Attacks . | . . Total Damage . | . . Kills . | . . Allies Corrupted . | . . Allies Melted . | . . Intel | -11 -10 ------- Run | Yrd Mat Robot Analysis Total . | . . Derelict Logs Recovered . | . . Drone Launches . | . . Drone Recoveries . | . . Exploration | -11 -10 ------------- Run | Yrd Mat Turns Passed 647 | 148 499 Spaces Moved 412 | 115 297 Core 40 | 33 7 Treads . | . . Legs 372 | 82 290 Wheels . | . . Hover . | . . Flight . | . . Fastest Speed 50 | 50 120 Average Speed 115 | 99 121 Slowest Speed 200 | 120 200 Overloaded Moves . | . . Propulsion Burnouts . | . . Robots Hopped . | . . Cave-ins Triggered . | . . Exploration Rate (%) 22 | 7 38 Regions Visited 1 Branch Regions . Pre-discovered Areas . | . . Known Exits Taken . | . . Unknown Exits Taken 1 | 1 . Scrap Searched . | . . Spaces Dug . | . . Terrain Destroyed 66 | . 66 Melee . | . . Projectile . | . . AOE 66 | . 66 Terrain Rammed . | . . Walls Destroyed . | . . Machines Disabled . | . . Actions | -11 -10 --------- Run | Yrd Mat Total 509 | 136 373 Wait 2 | 1 1 Move 411 | 114 297 Hop . | . . Pick Up 20 | 9 11 Fast Attach . | . . Attach 9 | 5 4 Detach . | . . Swap 8 | . 8 Drop 7 | . 7 Fire 48 | 6 42 Melee . | . . Ram 1 | . 1 Kick 3 | 1 2 Crush . | . . Escape Stasis . | . . Rewire . | . . Trap . | . . Miscellaneous . | . . Route ------- -11/Scrapyard -10/Materials (discovered 1 exit: [*Min]) History --------- Turn | Location | Event 2 | -11/Scrapyard | Met Revision 17 81 | -11/Scrapyard | Discovered new exit (range 8) 149 | -11/Scrapyard | Entered Materials 189 | -10/Materials | Repaired Lgt. Ion Engine 310 | -10/Materials | Build established: Mutant 340 | -10/Materials | Discovered new exit (range 15) 617 | -10/Materials | Core integrity fell below 50% 631 | -10/Materials | Core integrity fell below 20% 648 | -10/Materials | Destroyed by G-47 Trooper with Particle Gun Last Messages --------------- K-01 Serf collects debris. U-05 Engineer builds a Wall. Overweight warning: You are carrying more than your current propulsion can efficiently support, which slows movement; see status page ('s') or the top of the parts list for the specific mass vs. support values. R-06 Scavenger collects Aluminum Leg. K-01 Serf collects debris. Slammed into U-05 Engineer. U-05 Engineer lays Concrete. Mining Laser destroyed. G-47 Trooper heat spikes uncontrollably. K-01 Serf collects debris. G-47 Trooper heat spikes uncontrollably. U-05 Engineer lays Concrete. G-47 Trooper overheating. U-05 Engineer builds a Wall. U-05 Engineer lays Concrete. [Achievement: First Step to Greatness] Map ----- +----------------------------------------------------+ | ???????????????????????????????????# #???##### | | ???????????????????????????????????# #??##"""# | | ???????????????????????????????????# #?##"[[ " | | ???????????????????????????????????# #?#"" " | | ???????????????????????????????????# #?# | | ??????????????????????#????????????# #?# < | | ??????????????????????# ???????????# #?# | | ??????????????????????# ??????????# #?# | | ??????????????????????# ?????????# #?## | | ??????????????????????# ########## #??## # | | ??????????????????????# ##### # | | ??????????????????????# + | | ??????????????######### # | | ?????????????? # | | ????????????? # | | ????????????? # | | ???????????? + | | ???????????? ##### | | ???????????? #???# | | ????????????# % ######### #???# | | ????????????# ## ##???????# ##??# | | ????????????# u# # ###?????# T#??# | | ????????????# # #?????# ##??? | | ????????????# % u % #?????# #???? | | ??????????????# # #?????# #???? | | ??????????????# @### ## ####### ##??? | | ??????????????# + # #### | | ??????????????# gg# """ # | | ??????????????# r # / """"" # | | ??????????????+ ^+ """"" # | | ??????????????# """ "" # """"" # ###+ | | ??????????????# """" """ # """ # ### # | | ??????????????# """"" #= ## # ## " | | ??????????????#?? ######### # # ## " | | ???????????????? ? ##### ## # # ## " | | ???????????????? ?? ##### | | ????????????????????? #?# ! | | ????????????????????? #?# ! | | ???????????????????? #?# ! | | ????????????????????? "T" #############+#?# | | ???????????????????????#####+###??????????? ### | | ???????????????????????????? ?????????????? #?? | | ?????????????????????????????????????????? "" #?? | | ?????????????????????????????????????????? #?? | | ????????????????????????????????????????? % #?? | | ????????????????????????????????????????? % #?? | | ????????????????????????????????????????########?? | | ???????????????????????????????????????? ??? | | ???????????????????????????????????????? ??? | | ??????????????????????????????????????? ??? | +----------------------------------------------------+ Best States ------------- Heat Dissipation 25 Energy Generation 10 Energy Capacity 275 Matter Stores 300 Matter Capacity 300 Sight Range 16 Terrain Scan Density 10 Armor Coverage 160 Evasion (%) 55 Item Schematics ----------------- None Robot Schematics ------------------ None Fabricated ------------ Nothing Alien Tech Used ----------------- None Achievements -------------- First Step to Greatness One Hack Too Far Part-time Mechanic Uninvited Guest Challenges ------------ None Game ------ Seed OpticalPointTriangulator Manual? 0 Play Time 00:16:11 Cumulative 0.2 hours Start 2024.03.31 @ 20:51:19 End 2024.03.31 @ 21:08:52 Sessions 1 Manual Loads 0 Difficulty Rogue Special Mode None Game No. 1 Rogue 1 Adventurer 0 Explorer 0 Win Type - Total 0 Types 0/0/0/0/0/0/0/0/0 Lore% 0 Gallery% 1 Achievement% 1 Wizard Run 0 Options --------- Layout 1 ASCII 0 Keyboard 0 Movement Arrows Keybinds 0 Fullscreen 1 Font 32/Terminus Map View 50x35 Zoom Use 0% Tactical HUD 0 Map Filters NONE Filters NONE Steam 1 RUN: b98660ff-19a6-447a-b0ee-ce426e328b9d